fUSD/lending_fUSD_20240701
["ID","MTS","AMOUNT","RATE_DAILY","PERIOD"]
[330796474,1719798632783,-39447.1576,0.000139,2]
[330796475,1719798632792,-40794.3546,0.000139,2]
[330796476,1719798632802,-324.7674,0.000139,2]
[330796477,1719798632811,-518.2,0.00013912,2]
[330796478,1719798632820,-812.51519412,0.00013923,2]
[330796479,1719798632829,-158.91462983,0.00013923,2]
[330796480,1719798632841,-2491.93077119,0.00013923,2]
[330796481,1719798632857,-500.0,0.00013933,2]
[330796482,1719798632866,-518.2,0.00013949,2]
[330796483,1719798632875,-518.2,0.00013986,2]
[330796484,1719798632885,-297.64036718,0.00013989,2]
[330796485,1719798632895,-274.53125555,0.0001399,2]
[330796486,1719798632904,-157.17542554,0.00013999,3]
[330796487,1719798632913,-155.0,0.00013999,2]
[330796488,1719798632923,-506361.0395716,0.00014,2]
[330796489,1719798632937,-2743.30296766,0.00014,2]
[330796490,1719798632948,-1306.24,0.00014,2]
[330796491,1719798632959,-1341.7611196,0.00014,2]
[330796492,1719798632971,-600.0,0.00014,2]
[330796493,1719798632982,-921.84774447,0.00014,2]
[330796494,1719798632995,-1000.37172,0.00014,2]
[330796495,1719798633006,-607.95818831,0.00014,2]
[330796496,1719798633017,-775.19666386,0.00014,2]
[330796497,1719798633028,-9310.89898269,0.00014,2]
[330796498,1719798633039,-2124.37171722,0.00014,2]
[330796499,1719798633051,-281.19172138,0.00014,2]
[330796500,1719798633098,-27978.1165127,0.00014,2]
[330796501,1719798633110,-3395.3935,0.00014,2]
[330796502,1719798633122,-39372.4685872,0.00014,2]
[330796503,1719798633134,-1444.14581354,0.00014,2]
[330796507,1719798638206,-1084.17957934,0.00014,2]
[330796508,1719798638218,-1888.89310926,0.00014,2]
[330796509,1719798638230,-3450.49798637,0.00014,2]
[330796510,1719798638242,-586.27968751,0.00014,2]
[330796511,1719798638254,-6874.19597628,0.00014,2]
[330796512,1719798638266,-7247.88125866,0.00014,2]
[330796513,1719798638277,-7173.35954135,0.00014,2]
[330796514,1719798638289,-9901.01985224,0.00014,2]
[330796515,1719798638301,-5085.22599903,0.00014,2]
[330796516,1719798638312,-5726.34454775,0.00014,2]
[330796517,1719798638325,-807.04598073,0.00014,2]
[330796518,1719798638337,-8119.95917606,0.00014,2]
[330796519,1719798638349,-21544.18968331,0.00014,2]
[330796520,1719798638571,-230.37162265,0.00014023,2]
[330796521,1719798638584,-287.82837735,0.00014023,2]
[330796522,1719798638593,-441.34679668,0.0001406,2]
[330796523,1719798638605,-76.85320332,0.0001406,2]
[330796524,1719798638614,-398.96813013,0.00014097,2]
[330796525,1719798638625,-119.23186987,0.00014097,2]
[330796526,1719798638635,-394.03358801,0.00014134,2]
[330796527,1719798638646,-124.16641199,0.00014134,2]
[330796528,1719798638656,-504.83275715,0.00014343,3]
[330796529,1719798638665,-210.79,0.00014583,2]
[330796530,1719798638675,-168.55,0.00014612,2]
[330796531,1719798638684,-382.85033405,0.00014831,2]
[330796532,1719798638696,-1904.99238,0.00014831,2]
[330796533,1719798638707,-300.32,0.00014831,2]
[330796534,1719798638719,-774.91831638,0.00014831,2]
[330796535,1719798638731,-350.1,0.00014831,2]
[330796536,1719798638744,-959.43622439,0.00014831,2]
[330796537,1719798638754,-83.96377561,0.00014865,2]
[330796538,1719798638765,-479.23585153,0.00014865,2]
[330796539,1719798638777,-249.31556697,0.00014865,2]
[330796540,1719798638786,-173.42,0.00014867,2]
[330796541,1719798638796,-77.26443303,0.00014883,2]
[330796543,1719798638828,-147.73556697,0.00014883,2]
[330796545,1719798638839,-500.0,0.00014898,2]
[330796547,1719798638851,-488.84594952,0.00014898,3]
[330796549,1719798638863,-12.81186763,0.00014898,3]
[330796550,1719798638872,-501.64098155,0.00014898,3]
[330796551,1719798638882,-260.99176108,0.00015,2]
[330796552,1719798638893,-1002.20146567,0.00015,2]
[330796553,1719798638906,-3736.80677325,0.00015,2]
[330796554,1719798638916,-500.0,0.00015008,2]
[330796555,1719798638927,-500.0,0.00015099,2]
[330796556,1719798638936,-1000.0,0.00015109,2]
[330796557,1719798638946,-500.0,0.00015117,2]
[330796558,1719798638955,-2491.93077113,0.00015134,2]
[330796559,1719798638965,-501.44758836,0.00015227,2]
[330796560,1719798638974,-4399.0,0.000154,2]
[330796561,1719798638984,-905.0,0.000154,2]
[330796562,1719798638994,-467.05,0.00015463,2]
[330796563,1719798639004,-168.55,0.00015525,2]
[330796564,1719798639013,-1279.143,0.0001555,2]
[330796565,1719798639023,-361.984,0.0001555,2]
[330796566,1719798639033,-1830.0,0.0001555,2]
[330796567,1719798639043,-1657.0,0.0001555,2]
[330796568,1719798639053,-166.258,0.0001555,2]
[330796569,1719798639063,-679.725,0.0001555,2]
[330796570,1719798639073,-448.0,0.0001555,2]
[330796571,1719798639083,-443.0,0.0001555,2]
[330796572,1719798639092,-813.0,0.0001555,2]
[330796573,1719798639102,-1304.0,0.0001555,2]
[330796574,1719798639111,-2422.225,0.0001555,2]
[330796575,1719798639121,-1987.0,0.0001555,2]
[330796576,1719798639131,-548.0,0.0001555,2]
[330796577,1719798639141,-3205.0,0.0001555,2]
[330796578,1719798639151,-276.766,0.0001555,2]
[330796579,1719798639161,-11113.711,0.0001555,2]
[330796580,1719798639171,-5008.05573773,0.0001555,2]
[330796581,1719798639184,-819.57626227,0.0001555,2]
[330796582,1719798639195,-291.095,0.0001555,2]
[330796583,1719798639205,-1201.423,0.0001555,2]
[330796584,1719798639216,-2251.0708118,0.0001555,2]
[330796585,1719798639228,-1999.05404821,0.0001555,2]
[330796586,1719798639241,-944.36313999,0.0001555,2]
[330796587,1719798639251,-207.39561631,0.0001555,2]
[330796588,1719798639264,-564.933018,0.0001555,2]
[330796589,1719798639277,-895.56636569,0.0001555,2]
[330796590,1719798639288,-1070.0,0.0001555,2]
[330796591,1719798639298,-7500.0,0.00015653,2]
[330796592,1719798639308,-575.14679552,0.00015658,2]
[330796593,1719798639318,-812.51519411,0.00015807,2]
[330796594,1719798639328,-337.0,0.00016272,2]
[330796595,1719798639338,-2491.93077113,0.00016345,2]
[330796596,1719798639347,-168.55,0.00016438,2]
[330796597,1719798639357,-1759.20948392,0.000165,2]
[330796598,1719798639367,-548.27191633,0.00016743,2]
[330796599,1719798639376,-812.51519411,0.00016749,2]
[330796600,1719798639386,-1000.0,0.00016788,2]
[330796601,1719798639396,-801.96943284,0.0001697,2]
[330796602,1719798639407,-633.0,0.00017066,2]
[330796603,1719798639416,-700.0,0.0001707,2]
[330796604,1719798639426,-158.91462981,0.00017363,2]
[330796605,1719798639436,-2491.93077113,0.00017556,2]
[330796606,1719798639446,-812.51519411,0.00017691,2]
[330796607,1719798639455,-220.5167,0.00017707,2]
[330796608,1719798639465,-467.05,0.00017727,2]
[330796609,1719798639474,-506.0,0.00017783,2]
[330796610,1719798639484,-150.24844828,0.00017864,2]
[330796611,1719798639494,-2100.0,0.00017912,2]
[330796612,1719798639503,-2912.82,0.0001799,3]
[330796613,1719798639514,-327.30236468,0.00018,2]
[330796614,1719798639524,-327.30236468,0.00018,2]
[330796615,1719798639534,-327.30236468,0.00018,2]
[330796616,1719798639543,-327.30236468,0.00018,2]
[330796617,1719798639554,-327.30236468,0.00018,2]
[330796618,1719798639565,-327.30236468,0.00018,2]
[330796619,1719798639575,-327.30236468,0.00018,2]
[330796620,1719798639585,-327.30236468,0.00018,2]
[330796621,1719798639594,-327.30236468,0.00018,2]
[330796622,1719798639603,-327.30236468,0.00018,2]
[330796623,1719798639613,-327.30236468,0.00018,2]
[330796624,1719798639623,-327.30236468,0.00018,2]
[330796625,1719798639634,-327.30236468,0.00018,2]
[330796626,1719798639645,-327.30236468,0.00018,2]
[330796627,1719798639656,-327.30236468,0.00018,2]
[330796628,1719798639666,-327.30236468,0.00018,2]
[330796629,1719798639677,-327.30236468,0.00018,2]
[330796630,1719798639687,-327.30236468,0.00018,2]
[330796631,1719798639697,-327.30236468,0.00018,2]
[330796632,1719798639707,-327.30236468,0.00018,2]
[330796633,1719798639716,-327.30236468,0.00018,2]
[330796634,1719798639726,-327.30236468,0.00018,2]
[330796635,1719798639735,-327.30236468,0.00018,2]
[330796636,1719798639744,-327.30236468,0.00018,2]
[330796637,1719798639754,-327.30236468,0.00018,2]
[330796638,1719798639763,-327.30236468,0.00018,2]
[330796639,1719798639773,-740.80837606,0.00018081,2]
[330796640,1719798639785,-1517.50982453,0.00018081,2]
[330796641,1719798639796,-424.88308538,0.00018081,2]
[330796642,1719798639808,-1153.0,0.00018081,2]
[330796643,1719798639820,-4800.900707,0.00018081,2]
[330796644,1719798639832,-1856.5631075,0.00018081,2]
[330796645,1719798639852,-113.90091873,0.00018081,2]
[330796646,1719798639861,-226.0,0.000184,2]
[330796647,1719798639871,-356.0,0.000184,2]
[330796648,1719798639882,-1000.0,0.000184,2]
[330796649,1719798639893,-282.80617526,0.0001845,2]
[330796650,1719798639905,-426.35735425,0.0001845,2]
[330796651,1719798639918,-290.83647049,0.0001845,2]
[330796652,1719798639928,-157.35121688,0.0001845,2]
[330796653,1719798639937,-250.47252331,0.0001845,2]
[330796654,1719798639950,-444.11719502,0.0001845,2]
[330796655,1719798639961,-4357.7365366,0.0001845,2]
[330796656,1719798639971,-1000.0,0.00018467,2]
[330796657,1719798639980,-189.70654062,0.00018537,2]
[330796658,1719798639990,-150.42510388,0.00018545,2]
[330796659,1719798639999,-252.62605802,0.00018546,2]
[330796660,1719798640009,-370.507,0.0001855,2]
[330796661,1719798640018,-506.389,0.0001855,2]
[330796662,1719798640027,-166.0,0.0001855,2]
[330796663,1719798640036,-618.0,0.0001855,2]
[330796664,1719798640045,-448.0,0.0001855,2]
[330796665,1719798640054,-443.0,0.0001855,2]
[330796666,1719798640064,-813.0,0.0001855,2]
[330796667,1719798640073,-1159.871,0.0001855,2]
[330796668,1719798640082,-98.97369132,0.0001855,2]
[330796669,1719798640094,-1888.02630868,0.0001855,2]
[330796670,1719798640103,-516.764,0.0001855,2]
[330796671,1719798640112,-3205.0,0.0001855,2]
[330796672,1719798640121,-276.0,0.0001855,2]
[330796673,1719798640130,-154.75636602,0.00018559,2]
[330796674,1719798640141,-252.62605802,0.00018565,2]
[330796675,1719798640151,-466.15267921,0.00018569,2]
[330796676,1719798640161,-166.66666668,0.00018585,2]
[330796677,1719798640171,-166.66666667,0.00018586,2]
[330796678,1719798640180,-153.80654678,0.00018593,5]
[330796679,1719798640190,-280.3467012,0.00018603,2]
[330796680,1719798640199,-1470.38904713,0.00018609,2]
[330796681,1719798640209,-166.66666667,0.0001862,2]
[330796682,1719798640219,-812.51519411,0.00018632,2]
[330796684,1719798640228,-1494.77524589,0.00018717,2]
[330796686,1719798640238,-1142.24732869,0.00018733,2]
[330796688,1719798640247,-400.70142038,0.00018765,2]
[330796690,1719798640255,-2491.93077113,0.00018767,2]
[330796692,1719798640264,-166.66666668,0.00018792,2]
[330796694,1719798640274,-5052.32625488,0.00018809,2]
[330796696,1719798640283,-152.66657846,0.00018815,2]
[330796698,1719798640292,-189.70654062,0.00018828,2]
[330796700,1719798640301,-2236.35,0.00018849,30]
[330796702,1719798640310,-466.15267921,0.0001886,2]
[330796704,1719798640320,-622.85018373,0.00018864,2]
[330796706,1719798640329,-280.3467012,0.00018877,2]
[330796707,1719798640338,-153.81,0.000189,2]
[330796709,1719798640348,-155.7422207,0.00018902,2]
[330796711,1719798640358,-1470.38904713,0.00018904,2]
[330796712,1719798640367,-152.66657846,0.00018905,2]
[330796713,1719798640376,-1470.38904713,0.00018936,2]
[330796714,1719798640386,-159.55509591,0.00018949,2]
[330796716,1719798640396,-151.03726488,0.00018951,2]
[330796718,1719798640406,-154.83472857,0.00018955,2]
[330796720,1719798640416,-1470.38904713,0.00018972,2]
[330796722,1719798640425,-155.7422207,0.00018975,2]
[330796724,1719798640435,-154.40248191,0.00018976,2]
[330796726,1719798640445,-252.62605802,0.00018993,2]
[330796728,1719798640455,-17732.59184033,0.00018999,2]
[330796730,1719798640467,-763.15030871,0.00018999,2]
[330796733,1719798640483,-791.18590152,0.00018999,2]
[330796734,1719798640495,-502.28877738,0.00018999,2]
[330796735,1719798640504,-152.66657846,0.00019034,2]
[330796736,1719798640514,-174.637467,0.00019035,2]
[330796737,1719798640525,-151.04669052,0.00019053,2]
[330796738,1719798640534,-370.52360019,0.00019069,2]
[330796739,1719798640543,-370.52360019,0.00019069,2]
[330796740,1719798640553,-7.87112278,0.00019077,2]
[330796741,1719798640565,-381.11462267,0.00019077,2]
[330796742,1719798640575,-152.66657846,0.00019082,2]
[330796743,1719798640585,-716.40696563,0.00019091,2]
[330796744,1719798640594,-166.66666668,0.00019102,2]
[330796745,1719798640604,-155.7422207,0.00019118,2]
[330796746,1719798640613,-159.69608688,0.00019127,2]
[330796747,1719798640622,-152.75625897,0.00019135,2]
[330796748,1719798640632,-155.7422207,0.0001914,2]
[330796749,1719798640641,-400.70142038,0.00019143,2]
[330796750,1719798640652,-151.04669052,0.0001915,2]
[330796751,1719798640661,-166.66666666,0.00019153,2]
[330796752,1719798640670,-532.4587258,0.00019164,2]
[330796753,1719798640679,-1948.60950602,0.00019168,2]
[330796754,1719798640691,-2199.22889,0.00019168,2]
[330796755,1719798640702,-582.19966032,0.00019168,2]
[330796756,1719798640713,-322.28819854,0.00019168,2]
[330796757,1719798640722,-280.3467012,0.00019172,2]
[330796758,1719798640731,-151.8017029,0.00019175,2]
[330796759,1719798640740,-55.72567828,0.00019178,2]
[330796760,1719798640752,-444.27432172,0.00019178,2]
[330796761,1719798640761,-205.12587131,0.00019178,2]
[330796762,1719798640770,-353.09507825,0.00019178,2]
[330796763,1719798640781,-258.30220457,0.00019178,2]
[330796764,1719798640790,-189.70654062,0.00019178,2]
[330796765,1719798640799,-250.0,0.00019178,2]
[330796766,1719798640808,-150.0,0.00019178,2]
[330796767,1719798640817,-252.62605802,0.00019197,2]
[330796768,1719798640826,-293.90368973,0.00019229,2]
[330796769,1719798640835,-151.03726488,0.00019236,2]
[330796770,1719798640849,-906.3999525,0.00019246,2]
[330796771,1719798641005,-327.30236468,0.00018,2]
[330796772,1719798641015,-52.63988122,0.00018,2]
[330796773,1719798641043,-274.66248346,0.00018,2]
[330796774,1719798641051,-327.30236468,0.00018,2]
[330796775,1719798641061,-327.30236468,0.00018,2]
[330796776,1719798641070,-327.30236468,0.00018,2]
[330796777,1719798641079,-327.30236468,0.00018,2]
[330796778,1719798641088,-327.30236468,0.00018,2]
[330796779,1719798641097,-327.30236468,0.00018,2]
[330796780,1719798641107,-327.30236468,0.00018,2]
[330796781,1719798641117,-327.30236468,0.00018,2]
[330796782,1719798641128,-327.30236468,0.00018,2]
[330796783,1719798641138,-199.604,0.0001855,2]
[330796784,1719798641148,-526.28304125,0.00018864,2]
[330796785,1719798641161,-166.60772573,0.00018999,2]
[330796786,1719798641172,-480.36351234,0.00018999,2]
[330796787,1719798641181,-235.84737619,0.00019246,2]
[330796788,1719798641195,-532.4587258,0.00019267,2]
[330796789,1719798641205,-466.15267921,0.00019314,2]
[330796790,1719798641215,-1124.19362748,0.00019318,2]
[330796791,1719798641227,-18.05370121,0.00019318,2]
[330796792,1719798641237,-151.8017029,0.00019326,2]
[330796793,1719798641246,-152.66657846,0.00019328,2]
[330796794,1719798641255,-474.63082794,0.0001935,2]
[330796795,1719798641265,-166.66666666,0.00019352,2]
[330796796,1719798641274,-201.65375587,0.00019389,2]
[330796797,1719798641284,-300.15492515,0.00019398,2]
[330796798,1719798641294,-1470.38904713,0.00019408,2]
[330796799,1719798641304,-151.04669052,0.00019415,2]
[330796800,1719798641314,-10.56718824,0.00019427,2]
[330796801,1719798641326,-145.83606845,0.00019427,2]
[330796802,1719798641335,-339.35242364,0.00019431,2]
[330796830,1719798643295,-327.30236468,0.00018,2]
[330796832,1719798643305,-327.30236468,0.00018,2]
[330796834,1719798643315,-150.15370515,0.00018,2]
[330796836,1719798643326,-177.14865953,0.00018,2]
[330796838,1719798643336,-327.30236468,0.00018,2]
[330796840,1719798643345,-327.30236468,0.00018,2]
[330796842,1719798643354,-327.30236468,0.00018,2]
[330796844,1719798643364,-327.30236468,0.00018,2]
[330796846,1719798643373,-327.30236468,0.00018,2]
[330796848,1719798643382,-327.30236468,0.00018,2]
[330796850,1719798643392,-327.30236468,0.00018,2]
[330796852,1719798643401,-419.64757636,0.00019431,2]
[330796854,1719798643410,-227.0716558,0.00019451,2]
[330796856,1719798643419,-1470.38904713,0.00019463,2]
[330796858,1719798643428,-300.15492515,0.00019477,2]
[330796860,1719798643438,-189.70654062,0.00019503,2]
[330796862,1719798643447,-152.66657846,0.00019508,2]
[330796864,1719798643456,-280.3467012,0.00019524,2]
[330796866,1719798643465,-5052.32625488,0.00019527,2]
[330796868,1719798643475,-151.03726488,0.00019529,2]
[330796870,1719798643484,-444.9185,0.00019529,2]
[330796872,1719798643493,-400.70142038,0.00019538,2]
[330796874,1719798643502,-166.66666667,0.00019539,2]
[330796876,1719798643511,-1470.38904713,0.00019541,2]
[330796877,1719798643520,-372.42957144,0.00019548,2]
[330796878,1719798643530,-300.0,0.00019548,2]
[330796880,1719798643539,-155.7422207,0.0001956,2]
[330796882,1719798643548,-151.04669052,0.00019561,2]
[330796884,1719798643557,-205.00761768,0.00019565,2]
[330796888,1719798643590,-327.30236468,0.00018,2]
[330796890,1719798643600,-551.89444436,0.00019565,2]
[330796891,1719798643609,-520.46779222,0.00019565,2]
[330796892,1719798643618,-812.51519411,0.00019574,2]
[330796893,1719798643627,-1470.38904713,0.00019581,2]
[330796894,1719798643636,-252.62605802,0.00019598,2]
[330796895,1719798643646,-280.3467012,0.00019603,2]
[330796896,1719798643656,-532.4587258,0.00019651,2]
[330796897,1719798643665,-154.75636602,0.00019663,2]
[330796898,1719798643674,-152.75625897,0.00019673,2]
[330796899,1719798643683,-150.34244777,0.00019674,2]
[330796906,1719798646255,-298.31787138,0.00018,2]
[330796907,1719798646267,-28.9844933,0.00018,2]
[330796908,1719798646276,-327.30236468,0.00018,2]
[330796909,1719798646286,-327.30236468,0.00018,2]
[330796910,1719798646295,-327.30236468,0.00018,2]
[330796911,1719798646304,-327.30236468,0.00018,2]
[330796912,1719798646313,-327.30236468,0.00018,2]
[330796913,1719798646322,-327.30236468,0.00018,2]
[330796914,1719798646331,-327.30236468,0.00018,2]
[330796915,1719798646340,-327.30236468,0.00018,2]
[330796916,1719798646349,-327.30236468,0.00018,2]
[330796917,1719798646359,-327.30236468,0.00018,2]
[330796918,1719798646368,-3.99494458,0.00019674,2]
[330796919,1719798646377,-280.3467012,0.00019678,2]
[330796920,1719798646387,-189.70654062,0.00019679,2]
[330796921,1719798646396,-280.3467012,0.00019679,2]
[330796922,1719798646408,-150.0,0.00019683,2]
[330796923,1719798646417,-150.0,0.00019692,2]
[330796924,1719798646426,-159.55509591,0.00019701,2]
[330796925,1719798646436,-300.15492515,0.00019709,2]
[330796926,1719798646445,-37.45671181,0.00019718,2]
[330796927,1719798646793,-115.20986665,0.00019718,2]
[330796928,1719798646803,-290.52221699,0.00019726,2]
[330796929,1719798646815,-851.7251117,0.00019726,2]
[330796930,1719798646824,-1142.24732869,0.0001973,2]
[330796931,1719798646834,-151.04669052,0.00019735,2]
[330796932,1719798646844,-466.15267921,0.00019736,2]
[330796933,1719798646859,-150.42510388,0.00019743,2]
[330796934,1719798646869,-280.3467012,0.00019757,2]
[330796935,1719798646878,-400.70142038,0.00019777,2]
[330796936,1719798646888,-155.7422207,0.0001978,2]
[330796937,1719798646899,-400.70142038,0.00019813,2]
[330796938,1719798646910,-280.3467012,0.00019853,2]
[330796939,1719798646919,-151.8017029,0.00019872,2]
[330796940,1719798646932,-150.0,0.00019883,2]
[330796941,1719798646943,-5052.32625488,0.00019886,2]
[330796942,1719798646952,-252.62605802,0.0001989,2]
[330796943,1719798646962,-155.72385129,0.00019899,2]
[330796944,1719798646971,-466.15267921,0.00019939,2]
[330796945,1719798646981,-151.04669052,0.00019941,2]
[330796946,1719798646991,-156.40325669,0.00019964,2]
[330796947,1719798647000,-155.0,0.00019964,2]
[330796948,1719798647010,-700.0,0.0001997,2]
[330796949,1719798647019,-2491.93077113,0.00019978,2]
[330796950,1719798647028,-151.03726488,0.00019979,2]
[330796951,1719798647037,-174.637467,0.00019987,2]
[330796952,1719798647046,-155.0,0.0001999,2]
[330796953,1719798647055,-467.05,0.0001999,2]
[330796954,1719798647065,-188.17121959,0.0002,2]
[330796955,1719798647074,-3813.61546691,0.0002,3]
[330796956,1719798647103,-327.30236468,0.00018,2]
[330796957,1719798647113,-294.60197629,0.0002,3]
[330796958,1719798647125,-8750.79452534,0.0002,3]
[330796959,1719798647135,-3171.8613027,0.0002,2]
[330796960,1719798647144,-1275.45035502,0.0002,2]
[330796961,1719798647166,-6277.41954857,0.0002,2]
[330796962,1719798647178,-155.0,0.0002,2]
[330796963,1719798647188,-530.6328943,0.0002,2]
[330796964,1719798647198,-1049.81835951,0.0002,2]
[330796965,1719798647207,-42097.8627276,0.0002,2]
[330796966,1719798647217,-159.55509591,0.00020052,2]
[330796967,1719798647227,-166.66666667,0.00020059,2]
[330796968,1719798647237,-152.75625897,0.00020066,2]
[330796969,1719798647248,-155.7422207,0.00020078,2]
[330796970,1719798647258,-155.8243226,0.00020083,2]
[330796971,1719798647268,-189.70654062,0.00020102,2]
[330796972,1719798647278,-155.7422207,0.00020128,2]
[330796973,1719798647287,-1000.0,0.00020146,2]
[330796974,1719798647297,-152.66657846,0.00020149,2]
[330796975,1719798647308,-1470.38904713,0.00020158,2]
[330796976,1719798647317,-155.7422207,0.00020163,2]
[330796977,1719798647327,-280.3467012,0.00020182,2]
[330796978,1719798647337,-150.0,0.00020187,2]
[330796979,1719798647347,-154.33739235,0.0002024,2]
[330796980,1719798647357,-5052.32625488,0.00020245,2]
[330796981,1719798647368,-152.75625897,0.00020246,2]
[330796982,1719798647377,-400.70142038,0.00020261,2]
[330796983,1719798647386,-150.0,0.00020287,2]
[330796984,1719798647397,-151.8017029,0.00020288,2]
[330796985,1719798647408,-7.21000012,0.00020298,2]
[330796986,1719798647423,-145.54625885,0.00020298,2]
[330796987,1719798647433,-155.8243226,0.00020329,2]
[330796988,1719798647447,-154.8377809,0.00020338,2]
[330796989,1719798647457,-151.1669726,0.00020339,2]
[330796990,1719798647467,-166.66666668,0.00020353,2]
[330796991,1719798647477,-154.8377809,0.00020356,2]
[330796992,1719798647486,-466.15267921,0.00020356,2]
[330796993,1719798647496,-152.75625897,0.00020373,2]
[330796994,1719798647506,-155.8243226,0.00020378,2]
[330796995,1719798647516,-150.0,0.00020383,2]
[330796996,1719798647526,-189.70654062,0.00020409,2]
[330796997,1719798647537,-400.70142038,0.00020425,2]
[330796998,1719798647546,-1470.38904713,0.00020426,2]
[330796999,1719798647556,-154.8377809,0.00020436,2]
[330797000,1719798647566,-300.15492515,0.00020438,2]
[330797001,1719798647576,-166.66666666,0.00020448,2]
[330797002,1719798647585,-166.66666667,0.000205,2]
[330797003,1719798647595,-2000.0,0.000205,2]
[330797004,1719798647605,-159.55509593,0.00020504,2]
[330797005,1719798647615,-166.66666666,0.00020506,2]
[330797006,1719798647625,-812.51519411,0.00020516,2]
[330797007,1719798647635,-300.15492515,0.00020523,2]
[330797008,1719798647645,-161.23839519,0.0002054,2]
[330797009,1719798647654,-300.15492515,0.00020573,2]
[330797010,1719798647667,-400.70142038,0.00020574,2]
[330797011,1719798647676,-300.15492515,0.00020585,2]
[330797012,1719798647691,-156.40325669,0.00020586,2]
[330797013,1719798647701,-190.21894531,0.00020587,2]
[330797014,1719798647714,-275.9337339,0.00020587,2]
[330797015,1719798647724,-5052.32625488,0.00020605,2]
[330797016,1719798647734,-2.22315251,0.00020658,2]
[330797017,1719798710100,1836.62041,0.00022,120]
[330797021,1719798961778,306.52506356,0.00011199,2]
[330797022,1719799113827,25425.89780926,0.00011199,2]
[330797023,1719799426616,3469.534284,0.00011,2]
[330797024,1719799520530,1701.21007788,0.00011199,2]
[330797026,1719799597101,-207.53068889,0.00012302,2]
[330797027,1719799621386,7978.60210589,0.00011199,2]
[330797040,1719799832566,-447.0,0.0001266,2]
[330797041,1719799832576,-584.97699497,0.00012671,2]
[330797042,1719799832586,-447.34,0.00012771,2]
[330797043,1719799832596,-2854.70373049,0.00013472,2]
[330797044,1719799832610,-653.38369495,0.00013472,2]
[330797045,1719799832622,-2172.57419214,0.00013472,2]
[330797046,1719799832631,-2676.5119,0.00013474,2]
[330797047,1719799832640,-210.9206346,0.00013516,2]
[330797048,1719799832650,-430.66592486,0.00013574,2]
[330797049,1719799832660,-308.70829304,0.00013736,2]
[330797050,1719799832669,-220.0,0.00013888,2]
[330797051,1719799832679,-150.0,0.00013888,2]
[330797052,1719799832688,-22754.94759797,0.00013889,2]
[330797053,1719799832698,-1636.67145739,0.00013899,2]
[330797054,1719799832711,-8615.55268806,0.00013899,2]
[330797055,1719799832724,-6643.9959,0.00013899,2]
[330797056,1719799832735,-312.75876885,0.00013899,2]
[330797057,1719799832747,-5044.56,0.00013899,2]
[330797058,1719799832758,-3146.8178857,0.00013899,2]
[330797059,1719799832767,-1733.60702961,0.00013999,2]
[330797060,1719799832779,-436.64173545,0.00013999,2]
[330797061,1719799833260,-284.07218284,0.00012302,2]
[330797064,1719799833271,-695.15038772,0.00012302,2]
[330797066,1719799833281,-2447.36110015,0.00013999,2]
[330797068,1719799833292,-251.88644517,0.00013999,2]
[330797070,1719799833302,-284.1080006,0.00013999,2]
[330797072,1719799833314,-246149.31865124,0.00013999,2]
[330797074,1719799833325,-1165.65665655,0.00013999,2]
[330797077,1719799833335,-503.15430007,0.00013999,2]
[330797093,1719799838578,-446.62731363,0.00013999,2]
[330797095,1719799838590,-6392.52189754,0.00013999,2]
[330797097,1719799838602,-1760.05,0.00013999,2]
[330797099,1719799838614,-10263.97425626,0.00013999,2]
[330797101,1719799838626,-1241.87355483,0.00013999,2]
[330797103,1719799838638,-572.78982099,0.00013999,2]
[330797105,1719799838650,-28322.8141531,0.00013999,2]
[330797107,1719799838663,-1407.46562538,0.00013999,2]
[330797127,1719799838930,-143826.73108976,0.00013999,2]
[330797129,1719799838941,-644.09777035,0.00014109,2]
[330797131,1719799838951,-186.24854646,0.00014209,2]
[330797134,1719799838962,-250.0,0.00014409,2]
[330797136,1719799838972,-173.75,0.00014418,2]
[330797139,1719799838983,-215.03,0.00014524,2]
[330797142,1719799838993,-343.43544503,0.00014544,2]